[Event "*** SCC Grand Prix: Titled Tuesday Blitz"]
[Site "Chess.com"]
[Date "2020.07.07"]
[Round "9"]
[White "AliKa2810"]
[Black "Gerodot71"]
[Result "1-0"]
[WhiteElo "2593"]
[BlackElo "2404"]
[TimeControl "180+1"]
[EndTime "11:44:24 PDT"]
[Termination "AliKa2810 won by resignation"]

1. d4 {[%clk 0:03:00.9]} 1... Nf6 {[%clk 0:02:59.6]} 2. c4 {[%clk 0:03:01]} 2...
e6 {[%clk 0:02:59.4]} 3. Nf3 {[%clk 0:03:01.1]} 3... d5 {[%clk 0:02:59.2]} 4.
Nc3 {[%clk 0:03:00.8]} 4... dxc4 {[%clk 0:02:59.6]} 5. a4 {[%clk 0:02:55.8]}
5... a6 {[%clk 0:02:55.7]} 6. Bg5 {[%clk 0:02:49.7]} 6... Be7 {[%clk 0:02:49.1]}
7. e4 {[%clk 0:02:41.8]} 7... b6 {[%clk 0:02:39.3]} 8. Bxc4 {[%clk 0:02:40.2]}
8... Bb7 {[%clk 0:02:39.6]} 9. Qe2 {[%clk 0:02:40]} 9... h6 {[%clk 0:02:31.7]}
10. Bf4 {[%clk 0:02:28]} 10... O-O {[%clk 0:02:24.8]} 11. Rd1 {[%clk 0:02:26.1]}
11... Nbd7 {[%clk 0:02:20.6]} 12. O-O {[%clk 0:02:25.2]} 12... Bb4 {[%clk
0:02:05.9]} 13. d5 {[%clk 0:02:03.5]} 13... exd5 {[%clk 0:01:43]} 14. Nxd5
{[%clk 0:02:01.7]} 14... Nxd5 {[%clk 0:01:43.2]} 15. Bxd5 {[%clk 0:01:55.3]}
15... Bxd5 {[%clk 0:01:43.4]} 16. Rxd5 {[%clk 0:01:55.4]} 16... Qc8 {[%clk
0:01:42.5]} 17. Qc4 {[%clk 0:01:46.2]} 17... Bc5 {[%clk 0:01:26.8]} 18. b4
{[%clk 0:01:41]} 18... c6 {[%clk 0:01:27.1]} 19. Rxd7 {[%clk 0:01:34.7]} 19...
Qxd7 {[%clk 0:01:26]} 20. bxc5 {[%clk 0:01:34.4]} 20... b5 {[%clk 0:01:26.9]}
21. axb5 {[%clk 0:01:28.1]} 21... axb5 {[%clk 0:01:27.8]} 22. Qb3 {[%clk
0:01:27]} 22... Ra4 {[%clk 0:01:26.4]} 23. Bd6 {[%clk 0:01:17.8]} 23... Re8
{[%clk 0:01:24.9]} 24. e5 {[%clk 0:01:17.7]} 24... Qg4 {[%clk 0:01:14.7]} 25. h3
{[%clk 0:01:16.9]} 25... Qg6 {[%clk 0:01:13]} 26. Rd1 {[%clk 0:01:10.4]} 26...
Re6 {[%clk 0:01:10]} 27. Nd4 {[%clk 0:01:07.5]} 27... Qh5 {[%clk 0:01:06]} 28.
Nxe6 {[%clk 0:01:05.7]} 1-0

[Event "*** SCC Grand Prix: Titled Tuesday Blitz"]
[Site "Chess.com"]
[Date "2020.07.07"]
[Round "9"]
[White "Sueetin"]
[Black "MashaFromRussia"]
[Result "1-0"]
[WhiteElo "2323"]
[BlackElo "2434"]
[TimeControl "180+1"]
[EndTime "11:44:26 PDT"]
[Termination "Sueetin won by resignation"]

1. d4 {[%clk 0:03:00.9]} 1... Nf6 {[%clk 0:02:59.8]} 2. c4 {[%clk 0:03:00.7]}
2... g6 {[%clk 0:02:59.6]} 3. Nc3 {[%clk 0:03:00.4]} 3... Bg7 {[%clk 0:02:59.4]}
4. Nf3 {[%clk 0:03:00.5]} 4... O-O {[%clk 0:02:59.2]} 5. Bg5 {[%clk 0:03:01.1]}
5... d6 {[%clk 0:02:56]} 6. e3 {[%clk 0:03:01.2]} 6... c5 {[%clk 0:02:55]} 7. d5
{[%clk 0:03:01]} 7... Bf5 {[%clk 0:02:53.9]} 8. Nd2 {[%clk 0:03:00]} 8... Nbd7
{[%clk 0:02:46.5]} 9. Be2 {[%clk 0:02:58]} 9... Ne5 {[%clk 0:02:44.6]} 10. O-O
{[%clk 0:02:52.1]} 10... h6 {[%clk 0:02:38.3]} 11. Bh4 {[%clk 0:02:37.3]} 11...
g5 {[%clk 0:02:26.7]} 12. Bg3 {[%clk 0:02:36.8]} 12... Bg6 {[%clk 0:02:19.5]}
13. f4 {[%clk 0:02:17.9]} 13... Ned7 {[%clk 0:02:14.4]} 14. f5 {[%clk
0:02:13.1]} 14... Bh7 {[%clk 0:02:14.2]} 15. h4 {[%clk 0:01:52.6]} 15... Ne5
{[%clk 0:02:10.2]} 16. hxg5 {[%clk 0:01:50.7]} 16... hxg5 {[%clk 0:02:10]} 17.
Bxe5 {[%clk 0:01:48.8]} 17... dxe5 {[%clk 0:02:09.5]} 18. Nde4 {[%clk
0:01:43.6]} 18... Qc8 {[%clk 0:01:53.4]} 19. g4 {[%clk 0:01:41.1]} 19... e6
{[%clk 0:01:34.5]} 20. Nxf6+ {[%clk 0:01:27.6]} 20... Bxf6 {[%clk 0:01:34.1]}
21. Ne4 {[%clk 0:01:23.9]} 21... Bh8 {[%clk 0:01:27]} 22. Nxg5 {[%clk
0:01:10.8]} 22... exf5 {[%clk 0:01:25]} 23. Nxh7 {[%clk 0:01:06.3]} 23... Kxh7
{[%clk 0:01:25.9]} 24. Rxf5 {[%clk 0:01:05.8]} 24... Bg7 {[%clk 0:01:11.2]} 25.
Kg2 {[%clk 0:00:55.9]} 1-0

[Event "*** SCC Grand Prix: Titled Tuesday Blitz"]
[Site "Chess.com"]
[Date "2020.07.07"]
[Round "9"]
[White "NarminSoyunlu"]
[Black "HrvojeZagreb"]
[Result "1-0"]
[WhiteElo "2057"]
[BlackElo "2094"]
[TimeControl "180+1"]
[EndTime "11:44:32 PDT"]
[Termination "NarminSoyunlu won by resignation"]

1. d4 {[%clk 0:03:00.9]} 1... d6 {[%clk 0:02:45.6]} 2. c4 {[%clk 0:02:59.9]}
2... Nd7 {[%clk 0:02:40.2]} 3. g3 {[%clk 0:03:00.2]} 3... e5 {[%clk 0:02:39]} 4.
Bg2 {[%clk 0:03:00.8]} 4... f5 {[%clk 0:02:39]} 5. Nc3 {[%clk 0:02:58.6]} 5...
Ngf6 {[%clk 0:02:32.6]} 6. e4 {[%clk 0:02:54.3]} 6... fxe4 {[%clk 0:02:21.6]} 7.
Nxe4 {[%clk 0:02:50.8]} 7... Nxe4 {[%clk 0:02:01.5]} 8. Bxe4 {[%clk 0:02:51.7]}
8... Nf6 {[%clk 0:01:56.2]} 9. Bg2 {[%clk 0:02:51.2]} 9... exd4 {[%clk
0:01:43.6]} 10. Qxd4 {[%clk 0:02:50.5]} 10... Be7 {[%clk 0:01:38.1]} 11. Ne2
{[%clk 0:02:48.9]} 11... O-O {[%clk 0:01:37.9]} 12. O-O {[%clk 0:02:49]} 12...
c6 {[%clk 0:01:31.7]} 13. Nc3 {[%clk 0:02:48]} 13... Qc7 {[%clk 0:01:22.8]} 14.
h3 {[%clk 0:02:40.8]} 14... Bf5 {[%clk 0:01:20.6]} 15. Rd1 {[%clk 0:02:37.6]}
15... Rad8 {[%clk 0:01:15.1]} 16. Be3 {[%clk 0:02:34.4]} 16... b6 {[%clk
0:01:04.2]} 17. a4 {[%clk 0:02:22.6]} 17... Ne8 {[%clk 0:00:54.6]} 18. a5 {[%clk
0:02:20.8]} 18... c5 {[%clk 0:00:52.5]} 19. Qd5+ {[%clk 0:02:03.6]} 19... Kh8
{[%clk 0:00:50.4]} 20. axb6 {[%clk 0:02:03.9]} 20... axb6 {[%clk 0:00:50.4]} 21.
Nb5 {[%clk 0:02:04.2]} 21... Qb8 {[%clk 0:00:49.4]} 22. Ra7 {[%clk 0:01:55.5]}
22... Bg6 {[%clk 0:00:47.9]} 23. Rxe7 {[%clk 0:01:54.1]} 23... Nf6 {[%clk
0:00:46.4]} 24. Qg5 {[%clk 0:01:50.8]} 24... Rde8 {[%clk 0:00:36.3]} 25. Rb7
{[%clk 0:01:48.7]} 25... Qd8 {[%clk 0:00:22.3]} 26. Nxd6 {[%clk 0:01:47.8]} 1-0

[Event "*** SCC Grand Prix: Titled Tuesday Blitz"]
[Site "Chess.com"]
[Date "2020.07.07"]
[Round "9"]
[White "djano"]
[Black "Zurability"]
[Result "0-1"]
[WhiteElo "2459"]
[BlackElo "2594"]
[TimeControl "180+1"]
[EndTime "11:44:37 PDT"]
[Termination "Zurability won by resignation"]

1. e4 {[%clk 0:03:00.9]} 1... c5 {[%clk 0:02:59.9]} 2. Nc3 {[%clk 0:03:00.8]}
2... g6 {[%clk 0:02:59.5]} 3. f4 {[%clk 0:03:00.5]} 3... Bg7 {[%clk 0:02:59]} 4.
Nf3 {[%clk 0:02:58.2]} 4... Nc6 {[%clk 0:02:59.5]} 5. a3 {[%clk 0:02:58.4]} 5...
e6 {[%clk 0:02:59.7]} 6. Bc4 {[%clk 0:02:56.4]} 6... Nge7 {[%clk 0:02:59.3]} 7.
e5 {[%clk 0:02:48.1]} 7... d5 {[%clk 0:02:52.4]} 8. exd6 {[%clk 0:02:47.7]} 8...
Qxd6 {[%clk 0:02:51.2]} 9. d3 {[%clk 0:02:44.3]} 9... b6 {[%clk 0:02:51.4]} 10.
O-O {[%clk 0:02:38.4]} 10... Bb7 {[%clk 0:02:51.5]} 11. Ne4 {[%clk 0:02:22.2]}
11... Qc7 {[%clk 0:02:46.3]} 12. Qe1 {[%clk 0:02:16.5]} 12... Nf5 {[%clk
0:02:40.1]} 13. c3 {[%clk 0:02:05.1]} 13... O-O-O {[%clk 0:02:35.7]} 14. b4
{[%clk 0:01:44]} 14... cxb4 {[%clk 0:02:13.9]} 15. axb4 {[%clk 0:01:44.9]} 15...
Nxb4 {[%clk 0:02:14.3]} 16. Rxa7 {[%clk 0:01:35.7]} 16... Nxd3 {[%clk
0:02:13.5]} 17. Bxd3 {[%clk 0:01:14.9]} 17... Rxd3 {[%clk 0:02:14.4]} 18. Ne5
{[%clk 0:01:02.4]} 18... Rd5 {[%clk 0:02:05.4]} 19. Bb2 {[%clk 0:00:45.7]} 19...
Rhd8 {[%clk 0:02:00.7]} 20. Qa1 {[%clk 0:00:39.2]} 20... Ra5 {[%clk 0:01:55.8]}
21. Rxa5 {[%clk 0:00:36.6]} 21... bxa5 {[%clk 0:01:56.7]} 22. Qa4 {[%clk
0:00:23]} 22... Qb6+ {[%clk 0:01:45.9]} 23. Kh1 {[%clk 0:00:18.6]} 23... Bxe5
{[%clk 0:01:45.4]} 24. fxe5 {[%clk 0:00:18]} 24... Qxb2 {[%clk 0:01:44.4]} 25.
Qc4+ {[%clk 0:00:06.9]} 25... Kb8 {[%clk 0:01:43.9]} 0-1

[Event "*** SCC Grand Prix: Titled Tuesday Blitz"]
[Site "Chess.com"]
[Date "2020.07.07"]
[Round "9"]
[White "aljado"]
[Black "fabianvivasz"]
[Result "0-1"]
[WhiteElo "2112"]
[BlackElo "2246"]
[TimeControl "180+1"]
[EndTime "11:44:45 PDT"]
[Termination "fabianvivasz won by checkmate"]

1. e4 {[%clk 0:03:00.7]} 1... e5 {[%clk 0:02:59.8]} 2. Nf3 {[%clk 0:03:00.3]}
2... Nc6 {[%clk 0:03:00.3]} 3. Bb5 {[%clk 0:03:00.6]} 3... f5 {[%clk 0:03:00]}
4. Nc3 {[%clk 0:02:58.6]} 4... fxe4 {[%clk 0:02:59.8]} 5. Nxe5 {[%clk
0:02:58.1]} 5... Nxe5 {[%clk 0:02:56.9]} 6. Qh5+ {[%clk 0:02:53.6]} 6... Ng6
{[%clk 0:02:50.2]} 7. O-O {[%clk 0:02:51]} 7... Nf6 {[%clk 0:02:46.1]} 8. Qe2
{[%clk 0:02:46]} 8... c6 {[%clk 0:02:28.4]} 9. Ba4 {[%clk 0:02:43.8]} 9... d5
{[%clk 0:02:25.5]} 10. d3 {[%clk 0:02:44]} 10... Bb4 {[%clk 0:02:15.8]} 11. dxe4
{[%clk 0:02:39.8]} 11... Bxc3 {[%clk 0:02:15.4]} 12. exd5+ {[%clk 0:02:35.6]}
12... Be5 {[%clk 0:02:03.2]} 13. dxc6 {[%clk 0:02:30.3]} 13... O-O {[%clk
0:01:59.8]} 14. Bg5 {[%clk 0:02:26.7]} 14... bxc6 {[%clk 0:01:38.8]} 15. Bxc6
{[%clk 0:02:15.1]} 15... Rb8 {[%clk 0:01:35.8]} 16. Be4 {[%clk 0:02:03]} 16...
Qc7 {[%clk 0:01:14.5]} 17. Bd3 {[%clk 0:01:39.6]} 17... Bxh2+ {[%clk 0:01:11.2]}
18. Kh1 {[%clk 0:01:38.8]} 18... Bf4 {[%clk 0:01:09.1]} 19. Bxf6 {[%clk
0:01:34.9]} 19... Rxf6 {[%clk 0:01:07.2]} 20. Rfe1 {[%clk 0:01:30.8]} 20... Ne5
{[%clk 0:00:59.9]} 21. Be4 {[%clk 0:01:24.2]} 21... Be6 {[%clk 0:00:45.3]} 22.
g3 {[%clk 0:01:17.7]} 22... Ng4 {[%clk 0:00:43.6]} 23. gxf4 {[%clk 0:01:02.7]}
23... Qxf4 {[%clk 0:00:44.5]} 24. Bg2 {[%clk 0:00:59.3]} 24... Qh2# {[%clk
0:00:43.2]} 0-1

[Event "*** SCC Grand Prix: Titled Tuesday Blitz"]
[Site "Chess.com"]
[Date "2020.07.07"]
[Round "9"]
[White "GrafLermontov"]
[Black "GM4life"]
[Result "1-0"]
[WhiteElo "2480"]
[BlackElo "2362"]
[TimeControl "180+1"]
[EndTime "11:44:53 PDT"]
[Termination "GrafLermontov won by checkmate"]

1. d4 {[%clk 0:03:00.9]} 1... Nf6 {[%clk 0:03:00]} 2. c4 {[%clk 0:03:01.1]} 2...
g6 {[%clk 0:03:00]} 3. Nc3 {[%clk 0:03:01.4]} 3... Bg7 {[%clk 0:03:00.9]} 4. e4
{[%clk 0:03:01.8]} 4... d6 {[%clk 0:03:01.5]} 5. Be2 {[%clk 0:03:02.3]} 5... O-O
{[%clk 0:03:02.4]} 6. Be3 {[%clk 0:03:02.9]} 6... e5 {[%clk 0:02:59]} 7. d5
{[%clk 0:03:03]} 7... a5 {[%clk 0:02:56.5]} 8. g4 {[%clk 0:03:01.9]} 8... Na6
{[%clk 0:02:55.6]} 9. h4 {[%clk 0:03:01.1]} 9... Nc5 {[%clk 0:02:53.8]} 10. Bf3
{[%clk 0:02:59.3]} 10... Bd7 {[%clk 0:02:45.4]} 11. h5 {[%clk 0:02:56.6]} 11...
a4 {[%clk 0:02:39]} 12. g5 {[%clk 0:02:51.1]} 12... Ne8 {[%clk 0:02:34.3]} 13.
Nge2 {[%clk 0:02:46.7]} 13... c6 {[%clk 0:02:29.2]} 14. Ng3 {[%clk 0:02:39.4]}
14... Qb6 {[%clk 0:02:25.3]} 15. Qd2 {[%clk 0:02:23.8]} 15... Qxb2 {[%clk
0:02:21.6]} 16. Qxb2 {[%clk 0:02:17.6]} 16... Nd3+ {[%clk 0:02:21.4]} 17. Kd2
{[%clk 0:02:14.7]} 17... Nxb2 {[%clk 0:02:22.3]} 18. Be2 {[%clk 0:02:14.9]}
18... a3 {[%clk 0:02:02.7]} 19. c5 {[%clk 0:02:14.1]} 19... Na4 {[%clk
0:01:56.5]} 20. Nxa4 {[%clk 0:02:09.6]} 20... Rxa4 {[%clk 0:01:56.8]} 21. Rab1
{[%clk 0:02:08]} 21... cxd5 {[%clk 0:01:51.6]} 22. exd5 {[%clk 0:01:57.7]} 22...
dxc5 {[%clk 0:01:44.6]} 23. Bxc5 {[%clk 0:01:55.5]} 23... b6 {[%clk 0:01:11.4]}
24. Bxf8 {[%clk 0:01:53.1]} 24... Bxf8 {[%clk 0:01:12.3]} 25. Rxb6 {[%clk
0:01:50.2]} 25... Nd6 {[%clk 0:01:11.7]} 26. hxg6 {[%clk 0:01:46.8]} 26... fxg6
{[%clk 0:01:11.6]} 27. Rc1 {[%clk 0:01:46.7]} 27... Be7 {[%clk 0:01:11.5]} 28.
Rc7 {[%clk 0:01:40.9]} 28... Bxg5+ {[%clk 0:01:10.2]} 29. Ke1 {[%clk 0:01:41.1]}
29... Bd8 {[%clk 0:00:52.4]} 30. Rb8 {[%clk 0:01:28.4]} 30... Bc8 {[%clk
0:00:51.3]} 31. Rcxc8 {[%clk 0:01:27.9]} 31... Nxc8 {[%clk 0:00:52.2]} 32. Rxc8
{[%clk 0:01:28.8]} 32... Kg7 {[%clk 0:00:51.3]} 33. Rxd8 {[%clk 0:01:28.8]}
33... Rb4 {[%clk 0:00:51.2]} 34. d6 {[%clk 0:01:29.1]} 34... Rb2 {[%clk
0:00:51.2]} 35. d7 {[%clk 0:01:27.6]} 35... Rxa2 {[%clk 0:00:50.9]} 36. Rg8+
{[%clk 0:01:27.8]} 36... Kxg8 {[%clk 0:00:51.2]} 37. d8=Q+ {[%clk 0:01:28.7]}
37... Kg7 {[%clk 0:00:51.7]} 38. Bc4 {[%clk 0:01:28.5]} 38... Ra1+ {[%clk
0:00:51.5]} 39. Ke2 {[%clk 0:01:27.1]} 39... a2 {[%clk 0:00:52.4]} 40. Nf5+
{[%clk 0:01:17.6]} 40... gxf5 {[%clk 0:00:51.9]} 41. Qg5+ {[%clk 0:01:17.7]}
41... Kh8 {[%clk 0:00:51.6]} 42. Qf6# {[%clk 0:01:17.3]} 1-0

[Event "*** SCC Grand Prix: Titled Tuesday Blitz"]
[Site "Chess.com"]
[Date "2020.07.07"]
[Round "9"]
[White "silverback96"]
[Black "natelleka"]
[Result "1-0"]
[WhiteElo "2235"]
[BlackElo "2109"]
[TimeControl "180+1"]
[EndTime "11:44:57 PDT"]
[Termination "silverback96 won on time"]

1. e4 {[%clk 0:02:54.7]} 1... e5 {[%clk 0:02:59.7]} 2. f4 {[%clk 0:02:53.8]}
2... exf4 {[%clk 0:02:58.2]} 3. Nc3 {[%clk 0:02:41.6]} 3... Qh4+ {[%clk
0:02:41.9]} 4. Ke2 {[%clk 0:02:40.4]} 4... d5 {[%clk 0:02:40.6]} 5. Nxd5 {[%clk
0:02:38.9]} 5... Na6 {[%clk 0:02:21.3]} 6. Nf3 {[%clk 0:02:38]} 6... Qh5 {[%clk
0:02:08.4]} 7. Kf2 {[%clk 0:02:35]} 7... Bd6 {[%clk 0:01:49.9]} 8. Bxa6 {[%clk
0:02:26.3]} 8... bxa6 {[%clk 0:01:46.9]} 9. e5 {[%clk 0:02:26.8]} 9... Bc5+
{[%clk 0:01:14.4]} 10. d4 {[%clk 0:02:24.4]} 10... Bb6 {[%clk 0:01:14.3]} 11.
Bxf4 {[%clk 0:02:20.3]} 11... Be6 {[%clk 0:00:59.6]} 12. c4 {[%clk 0:02:20]}
12... O-O-O {[%clk 0:00:51.5]} 13. Nxb6+ {[%clk 0:02:17.7]} 13... axb6 {[%clk
0:00:48.1]} 14. Qa4 {[%clk 0:02:18.2]} 14... Kb7 {[%clk 0:00:42.5]} 15. Rac1
{[%clk 0:02:02.3]} 15... Ne7 {[%clk 0:00:36.1]} 16. d5 {[%clk 0:01:54.7]} 16...
Bd7 {[%clk 0:00:32.9]} 17. Qb4 {[%clk 0:01:52.2]} 17... Ng6 {[%clk 0:00:30.9]}
18. Bg3 {[%clk 0:01:48.8]} 18... Qf5 {[%clk 0:00:19.5]} 19. c5 {[%clk
0:01:46.7]} 19... Be8 {[%clk 0:00:11.9]} 20. cxb6 {[%clk 0:01:46.4]} 20... cxb6
{[%clk 0:00:11.9]} 21. e6 {[%clk 0:01:43.5]} 21... fxe6 {[%clk 0:00:11.3]} 22.
Rc7+ {[%clk 0:01:42.7]} 22... Ka8 {[%clk 0:00:10.4]} 23. Qxb6 {[%clk 0:01:42.9]}
1-0

[Event "*** SCC Grand Prix: Titled Tuesday Blitz"]
[Site "Chess.com"]
[Date "2020.07.07"]
[Round "9"]
[White "Lagmantr"]
[Black "GameOverBro"]
[Result "0-1"]
[WhiteElo "2632"]
[BlackElo "2511"]
[TimeControl "180+1"]
[EndTime "11:44:59 PDT"]
[Termination "GameOverBro won on time"]

1. e4 {[%clk 0:02:18.9]} 1... d6 {[%clk 0:02:59.5]} 2. d4 {[%clk 0:02:18.4]}
2... Nf6 {[%clk 0:02:59.2]} 3. Nc3 {[%clk 0:02:17.9]} 3... e5 {[%clk 0:02:59.2]}
4. Nf3 {[%clk 0:02:17.2]} 4... Nbd7 {[%clk 0:02:57.5]} 5. g4 {[%clk 0:02:17.4]}
5... Nxg4 {[%clk 0:02:56.1]} 6. Rg1 {[%clk 0:02:16.8]} 6... Ngf6 {[%clk
0:02:56]} 7. Bc4 {[%clk 0:02:14.8]} 7... h6 {[%clk 0:02:55.4]} 8. Be3 {[%clk
0:02:12.9]} 8... c6 {[%clk 0:02:55.3]} 9. Qd3 {[%clk 0:02:09.6]} 9... b5 {[%clk
0:02:53.7]} 10. Bb3 {[%clk 0:02:09.6]} 10... Qa5 {[%clk 0:02:53.6]} 11. dxe5
{[%clk 0:02:07.1]} 11... dxe5 {[%clk 0:02:52.9]} 12. a4 {[%clk 0:02:00]} 12...
b4 {[%clk 0:02:42.1]} 13. Ne2 {[%clk 0:01:19]} 13... Nc5 {[%clk 0:02:34.1]} 14.
Bxc5 {[%clk 0:01:07.4]} 14... Qxc5 {[%clk 0:02:30.4]} 15. O-O-O {[%clk
0:01:07.3]} 15... Be6 {[%clk 0:02:09]} 16. Bxe6 {[%clk 0:00:57.8]} 16... fxe6
{[%clk 0:02:09.9]} 17. Nh4 {[%clk 0:00:19.2]} 17... Kf7 {[%clk 0:02:02.4]} 18.
Qg3 {[%clk 0:00:18.9]} 18... g5 {[%clk 0:02:00.4]} 19. Nf3 {[%clk 0:00:17.8]}
19... Nxe4 {[%clk 0:01:47.5]} 20. Nxe5+ {[%clk 0:00:08.6]} 20... Kg8 {[%clk
0:01:38.6]} 21. Qf4 {[%clk 0:00:08.2]} 21... Bg7 {[%clk 0:01:28.6]} 22. Qf7+
{[%clk 0:00:03.8]} 22... Kh7 {[%clk 0:01:28.6]} 23. Qg6+ {[%clk 0:00:03.9]}
23... Kg8 {[%clk 0:01:29.1]} 24. Nd7 {[%clk 0:00:01.5]} 24... Qf5 {[%clk
0:01:25.3]} 0-1

[Event "*** SCC Grand Prix: Titled Tuesday Blitz"]
[Site "Chess.com"]
[Date "2020.07.07"]
[Round "9"]
[White "Semen_Khanin"]
[Black "Fandorine"]
[Result "0-1"]
[WhiteElo "2713"]
[BlackElo "2885"]
[TimeControl "180+1"]
[EndTime "11:45:00 PDT"]
[Termination "Fandorine won by resignation"]

1. e4 {[%clk 0:03:00.1]} 1... e5 {[%clk 0:03:00.1]} 2. Nf3 {[%clk 0:02:59.2]}
2... Nc6 {[%clk 0:03:00.6]} 3. Bb5 {[%clk 0:02:58.8]} 3... a6 {[%clk 0:03:00.6]}
4. Ba4 {[%clk 0:02:59.1]} 4... Nf6 {[%clk 0:02:59.9]} 5. O-O {[%clk 0:02:59.3]}
5... Be7 {[%clk 0:03:00.1]} 6. d3 {[%clk 0:02:59.4]} 6... d6 {[%clk 0:02:59.7]}
7. c4 {[%clk 0:02:44.1]} 7... O-O {[%clk 0:02:58.4]} 8. Nc3 {[%clk 0:02:44.3]}
8... Nd4 {[%clk 0:02:56.8]} 9. Nxd4 {[%clk 0:02:43.5]} 9... exd4 {[%clk
0:02:56.9]} 10. Ne2 {[%clk 0:02:43.5]} 10... c5 {[%clk 0:02:55.9]} 11. h3 {[%clk
0:02:42.8]} 11... Rb8 {[%clk 0:02:48.8]} 12. f4 {[%clk 0:02:40.9]} 12... b5
{[%clk 0:02:48.7]} 13. Bb3 {[%clk 0:02:41.2]} 13... Be6 {[%clk 0:02:47.6]} 14.
Qc2 {[%clk 0:02:32.4]} 14... bxc4 {[%clk 0:02:19.2]} 15. Bxc4 {[%clk 0:02:32]}
15... d5 {[%clk 0:02:17.5]} 16. f5 {[%clk 0:01:54.3]} 16... dxc4 {[%clk
0:02:13.1]} 17. fxe6 {[%clk 0:01:54.6]} 17... cxd3 {[%clk 0:02:13.5]} 18. exf7+
{[%clk 0:01:55.2]} 18... Rxf7 {[%clk 0:02:12]} 19. Qxd3 {[%clk 0:01:55.8]} 19...
c4 {[%clk 0:01:19.3]} 20. Qxc4 {[%clk 0:01:41.5]} 20... d3 {[%clk 0:01:19.7]}
21. Nd4 {[%clk 0:01:21.8]} 21... Rb4 {[%clk 0:01:17.4]} 22. Qxd3 {[%clk
0:01:02.2]} 22... Rxd4 {[%clk 0:01:11.1]} 23. Qxa6 {[%clk 0:01:02.3]} 23... Rxe4
{[%clk 0:01:01.8]} 24. Bg5 {[%clk 0:01:01]} 24... h6 {[%clk 0:00:58.6]} 25. Rad1
{[%clk 0:00:57.7]} 25... Rd4 {[%clk 0:00:58.7]} 0-1

[Event "*** SCC Grand Prix: Titled Tuesday Blitz"]
[Site "Chess.com"]
[Date "2020.07.07"]
[Round "9"]
[White "ApoIogiA"]
[Black "PattyCastillo"]
[Result "1/2-1/2"]
[WhiteElo "2098"]
[BlackElo "1944"]
[TimeControl "180+1"]
[EndTime "11:45:03 PDT"]
[Termination "Game drawn by repetition"]

1. d4 {[%clk 0:03:00.9]} 1... d5 {[%clk 0:02:57.8]} 2. c4 {[%clk 0:03:00.8]}
2... c6 {[%clk 0:02:57.3]} 3. Nf3 {[%clk 0:03:00.2]} 3... Nf6 {[%clk 0:02:57]}
4. Nc3 {[%clk 0:02:59.6]} 4... e6 {[%clk 0:02:56.4]} 5. e3 {[%clk 0:02:58]} 5...
Nbd7 {[%clk 0:02:54.8]} 6. Qc2 {[%clk 0:02:58.4]} 6... Bd6 {[%clk 0:02:53.6]} 7.
g4 {[%clk 0:02:58.6]} 7... h6 {[%clk 0:02:43.8]} 8. Rg1 {[%clk 0:02:58]} 8...
Bb4 {[%clk 0:02:32.8]} 9. Bd2 {[%clk 0:02:56.1]} 9... Qe7 {[%clk 0:01:57.4]} 10.
h4 {[%clk 0:02:43.2]} 10... e5 {[%clk 0:01:53.3]} 11. dxe5 {[%clk 0:02:34.2]}
11... Nxe5 {[%clk 0:01:52.9]} 12. Nxe5 {[%clk 0:02:35.1]} 12... Qxe5 {[%clk
0:01:52.5]} 13. O-O-O {[%clk 0:02:34.6]} 13... Bxg4 {[%clk 0:01:48.9]} 14. Re1
{[%clk 0:02:28]} 14... Bf5 {[%clk 0:01:48]} 15. Qb3 {[%clk 0:02:22.4]} 15...
Bxc3 {[%clk 0:01:23.5]} 16. Bxc3 {[%clk 0:02:22.3]} 16... Qe4 {[%clk 0:01:17.2]}
17. Rxg7 {[%clk 0:02:14.7]} 17... O-O-O {[%clk 0:00:45.3]} 18. f3 {[%clk
0:02:03.5]} 18... Qb1+ {[%clk 0:00:40.6]} 19. Kd2 {[%clk 0:02:02.5]} 19... dxc4+
{[%clk 0:00:40.7]} 20. Bd4 {[%clk 0:01:59.4]} 20... Qxe1+ {[%clk 0:00:31.4]} 21.
Kxe1 {[%clk 0:01:59.4]} 21... cxb3 {[%clk 0:00:31.8]} 22. axb3 {[%clk
0:01:59.1]} 22... Nh5 {[%clk 0:00:27]} 23. Rxf7 {[%clk 0:01:57.7]} 23... Bg6
{[%clk 0:00:20.5]} 24. Re7 {[%clk 0:01:56.5]} 24... Rxd4 {[%clk 0:00:19.8]} 25.
exd4 {[%clk 0:01:54.5]} 25... Re8 {[%clk 0:00:19.9]} 26. Rxe8+ {[%clk
0:01:54.8]} 26... Bxe8 {[%clk 0:00:20.8]} 27. Kf2 {[%clk 0:01:53.4]} 27... Kd7
{[%clk 0:00:20.2]} 28. Ke3 {[%clk 0:01:53.7]} 28... Kd6 {[%clk 0:00:20.4]} 29.
Bc4 {[%clk 0:01:51.4]} 29... b5 {[%clk 0:00:19.7]} 30. Bg8 {[%clk 0:01:50.8]}
30... Bg6 {[%clk 0:00:17.7]} 31. b4 {[%clk 0:01:38]} 31... Ng3 {[%clk
0:00:16.4]} 32. Kf4 {[%clk 0:01:35.1]} 32... Ne2+ {[%clk 0:00:14.6]} 33. Ke3
{[%clk 0:01:35.5]} 33... Ng3 {[%clk 0:00:13.5]} 34. Kf4 {[%clk 0:01:35.6]} 34...
Ne2+ {[%clk 0:00:13.5]} 35. Ke3 {[%clk 0:01:35.9]} 35... Ng3 {[%clk 0:00:13.8]}
1/2-1/2